fUSD/lending_fUSD_20251206
["ID","MTS","AMOUNT","RATE_DAILY","PERIOD"]
[396484450,1764985847553,-11944.53909699,0.00017,2]
[396484451,1764985847567,-42491.45219018,0.00017,2]
[396484452,1764985847577,-965.42,0.00017,2]
[396484453,1764985847597,-46200.45309124,0.00017,2]
[396484454,1764985847607,-2525.1683018,0.00017,2]
[396484455,1764985847616,-4686.0135138,0.00017,2]
[396484456,1764985847625,-131274.69461734,0.00017,2]
[396484457,1764985847637,-310.546,0.00017,2]
[396484459,1764986524876,171.74,0.00013096,2]
[396484460,1764986711617,-150.0,0.000162,2]
[396484461,1764986711642,-47.00144261,0.000162,2]
[396484462,1764986726650,-102.99855739,0.000162,2]
[396484463,1764986726673,-150.0,0.000162,2]
[396484464,1764986726698,-120.8801164,0.000162,2]
[396484465,1764986771607,-485.64954908,0.00016156,2]
[396484466,1764986775486,-158.64459208,0.00016156,2]
[396484467,1764986778161,-210.93645196,0.00016156,2]
[396484468,1764986781515,-232.68572867,0.00016156,2]
[396484469,1764986784384,-263.66691685,0.00016156,2]
[396484470,1764986786577,-231.61144897,0.00016156,2]
[396484471,1764986788796,-155.31007659,0.00016156,2]
[396484472,1764986790357,-250.04532576,0.00016156,2]
[396484473,1764986791881,-240.39871948,0.00016156,2]
[396484474,1764986795954,-397.17306172,0.00016156,2]
[396484475,1764986798634,-243.16233064,0.00016156,2]
[396484476,1764986800810,-169.92881942,0.00016156,2]
[396484477,1764986804700,-161.32000017,0.00016156,2]
[396484478,1764986806659,-49.01697861,0.00016156,2]
[396484479,1764986806684,-29.1198836,0.000162,2]
[396484480,1764986806708,-95.28600974,0.000162,2]
[396484481,1764986847609,-357.25774127,0.00016184,2]
[396484482,1764986848757,-431.46689418,0.00016184,2]
[396484483,1764986850930,-166.29926569,0.00016184,2]
[396484484,1764986853157,-276.85341313,0.00016184,2]
[396484485,1764986856540,-166.45546187,0.00016184,2]
[396484486,1764986858688,-201.66722386,0.00016184,2]
[396484487,1764986858711,-10.36236886,0.000162,2]
[396484488,1764986860787,-44.3516214,0.000162,2]
[396484489,1764986860809,-183.0221598,0.000162,2]
[396484492,1764986942784,1000.0,0.00015998,3]
[396484493,1764987011589,-227.53282604,0.00016188,2]
[396484494,1764987014300,-58.46717396,0.00016188,2]
[396484495,1764987014325,-284.21660658,0.00016188,2]
[396484502,1764987032262,-15.78339342,0.00016188,2]
[396484503,1764987032271,-150.0,0.00016188,2]
[396484504,1764987032281,-71.2948809,0.000162,2]
[396484505,1764987032290,-320.45750758,0.00016221,2]
[396484506,1764987032300,-181.18549778,0.00016246,2]
[396484507,1764987032310,-4473.41914774,0.00016326,2]
[396484508,1764987032321,-13867.31893508,0.00016326,2]
[396484509,1764987032371,-1017.51079332,0.00016326,2]
[396484510,1764987032424,-1053.03409589,0.00016326,2]
[396484511,1764987032480,-6943.92151329,0.00016326,2]
[396484512,1764987032533,-1518.58334676,0.00016326,2]
[396484513,1764987032544,-1618.14212,0.00016326,2]
[396484519,1764987038431,-4968.88785837,0.00016326,2]
[396484520,1764987038442,-3233.44485476,0.00016326,2]
[396484555,1764987040368,-135048.75380575,0.00016326,2]
[396484556,1764987040380,-1629.96159614,0.00016326,2]
[396484557,1764987040420,-1000.0,0.00016326,2]
[396484558,1764987040579,-637.23775054,0.00016326,2]
[396484560,1764987041002,-1.7e-07,0.00016326,2]
[396484579,1764987046314,-1963.0,0.00016326,2]
[396484580,1764987046475,-893.38042285,0.00016326,2]
[396484581,1764987046530,-308.52858885,0.00016326,2]
[396484582,1764987046544,-598.44994,0.00016326,2]
[396484583,1764987046583,-2587.23523049,0.00016326,2]
[396484584,1764987046593,-150.0,0.00016346,2]
[396484585,1764987046602,-678.10316756,0.000169,2]
[396484586,1764987046613,-5288.27568908,0.00016986,2]
[396484587,1764987046624,-1074.43970788,0.00016986,2]
[396484589,1764987099765,222.0,0.00025,120]
[396484590,1764987112379,222.0,0.00022,30]
[396484591,1764987312283,-213.54,0.00016,2]
[396484592,1764987312305,-527.57765053,0.00016084,2]
[396484593,1764987314948,-320.23651117,0.00016084,2]
[396484594,1764987316477,-242.71582632,0.00016084,2]
[396484595,1764987318016,-303.55737173,0.00016084,2]
[396484596,1764987318301,1002.89292157,0.00025,120]
[396484597,1764987321189,-396.07028631,0.00016084,2]
[396484598,1764987326300,-409.40194065,0.00016084,2]
[396484599,1764987327828,-472.20225941,0.00016084,2]
[396484600,1764987331787,-222.32551363,0.00016084,2]
[396484601,1764987333349,-212.56479553,0.00016084,2]
[396484602,1764987336645,-456.23748779,0.00016084,2]
[396484603,1764987341617,-171.08071791,0.00016084,2]
[396484604,1764987343300,-168.61783143,0.00016084,2]
[396484605,1764987344854,-237.93196114,0.00016084,2]
[396484606,1764987346386,-336.60224428,0.00016084,2]
[396484607,1764987348472,-308.28539697,0.00016084,2]
[396484608,1764987350039,-157.90268983,0.00016084,2]
[396484609,1764987352718,-256.92243837,0.00016084,2]
[396484610,1764987354270,-177.27,0.00016084,2]
[396484611,1764987357518,-192.32018216,0.00016084,2]
[396484612,1764987359631,-519.54975835,0.00016084,2]
[396484613,1764987361835,-204.60499598,0.00016084,2]
[396484614,1764987364010,-540.56864841,0.00016084,2]
[396484615,1764987365979,-221.24149237,0.00016084,2]
[396484616,1764987367640,-242.06209982,0.00016084,2]
[396484617,1764987369042,-166.66,0.00016084,2]
[396484618,1764987372333,-182.73267266,0.00016084,2]
[396484619,1764987373960,-232.63401562,0.00016084,2]
[396484620,1764987375482,-192.32018233,0.00016084,2]
[396484621,1764987378323,-168.79,0.00016084,2]
[396484622,1764987379467,-181.19692084,0.00016084,2]
[396484623,1764987382283,-246.88643133,0.00016084,2]
[396484624,1764987384074,-300.0,0.00016084,2]
[396484625,1764987387373,-530.80113346,0.00016084,2]
[396484626,1764987492055,-212.81227508,0.00016084,2]
[396484627,1764987492078,-16.72671855,0.00016084,2]
[396484628,1764987537583,-250.0,0.00016036,2]
[396484629,1764987538710,-175.2123444,0.00016036,2]
[396484630,1764987541919,-274.7876556,0.00016036,2]
[396484631,1764987548583,-264.58696209,0.00016036,2]
[396484632,1764987550765,-300.0,0.00016036,2]
[396484633,1764987553219,-222.30237251,0.00016036,2]
[396484634,1764987555274,-198.1639605,0.00016036,2]
[396484635,1764987557294,-300.0,0.00016036,2]
[396484636,1764987559875,-410.6718391,0.00016036,2]
[396484637,1764987562944,-182.54369777,0.00016036,2]
[396484638,1764987564891,-225.8981609,0.00016036,2]
[396484639,1764987569847,-321.53,0.00016036,2]
[396484640,1764987575644,-188.95444645,0.00016036,2]
[396484641,1764987577095,-219.08649978,0.00016036,2]
[396484642,1764987581031,-183.37914982,0.00016036,2]
[396484643,1764987584983,-179.46958982,0.00016036,2]
[396484644,1764987611612,-156.96332126,0.00016036,2]
[396484645,1764987611639,-45.36335659,0.00016036,2]
[396484646,1764987750090,166.66,0.00015123,2]
[396484647,1764987750278,166.66,0.00015441,2]
[396484648,1764987750431,166.66,0.00015759,2]
[396484649,1764987766544,200.0,0.00015872,2]
[396484650,1764987775410,200.0,0.00015872,2]
[396484652,1764987881630,-325.75017195,0.00016025,2]
[396484653,1764987883724,-338.05361481,0.00016025,2]
[396484654,1764987886409,-246.00727806,0.00016025,2]
[396484655,1764987887965,-182.0,0.00016025,2]
[396484656,1764987890110,-165.34225733,0.00016025,2]
[396484660,1764987954841,7428.29,0.000151,2]
[396484661,1764987954864,2492.03782024,0.000151,2]
[396484662,1764987963743,250.0,0.00015958,2]
[396484664,1764988066449,1221.44,0.00015647,2]
[396484665,1764988078224,179.4696,0.00015925,2]
[396484673,1764988141819,300.0,0.00015999,2]
[396484674,1764988142435,1000.0,0.00015997,3]
[396484676,1764988166820,598.83320402,0.00015925,2]
[396484677,1764988201184,300.0,0.00015999,2]
[396484679,1764988201215,1200.0,0.00015999,2]
[396484682,1764988228002,233.4,0.00015627,2]
[396484695,1764988231442,-50000.05,0.00016,4]
[396484696,1764988231452,-1642.98667785,0.00016025,2]
[396484697,1764988231461,-284.0,0.00016025,2]
[396484698,1764988231470,-250.0,0.0001603,2]
[396484699,1764988231479,-612.57,0.00016059,2]
[396484700,1764988231488,-215.02,0.00016071,2]
[396484701,1764988231497,-166.66,0.00016078,2]
[396484702,1764988231510,-550.0,0.00016083,2]
[396484703,1764988231519,-7000.0,0.00016084,2]
[396484704,1764988231529,-171.70182512,0.00016084,2]
[396484705,1764988231538,-150.0,0.000162,2]
[396484706,1764988231548,-150.0,0.000162,2]
[396484707,1764988231557,-150.0,0.000162,2]
[396484708,1764988231566,-235.27356254,0.000162,2]
[396484709,1764988231581,-150.0,0.000162,2]
[396484710,1764988231590,-150.0,0.000162,2]
[396484711,1764988231599,-150.0,0.000162,2]
[396484712,1764988231609,-150.0,0.000162,2]
[396484713,1764988231621,-150.46893232,0.000162,2]
[396484714,1764988231631,-150.0,0.000162,2]
[396484715,1764988231640,-150.52900081,0.000162,2]
[396484716,1764988231651,-150.0,0.000162,2]
[396484717,1764988231660,-150.73885243,0.000162,2]
[396484718,1764988231670,-150.0,0.000162,2]
[396484719,1764988231679,-150.0,0.000162,2]
[396484720,1764988231689,-57627.5210318,0.000162,5]
[396484721,1764988231698,-150.0,0.00016222,2]
[396484722,1764988231707,-6189.45543678,0.00016255,2]
[396484724,1764988231720,-202.11442822,0.00016336,2]
[396484725,1764988231729,-500.0,0.00016336,2]
[396484726,1764988231739,-200.0,0.00016336,2]
[396484727,1764988231748,-500.0,0.00016336,2]
[396484728,1764988231757,-500.0,0.00016336,2]
[396484729,1764988231767,-500.0,0.00016336,2]
[396484730,1764988231776,-500.0,0.00016336,2]
[396484731,1764988231786,-500.0,0.00016336,2]
[396484732,1764988231795,-500.0,0.00016336,2]
[396484733,1764988231805,-500.0,0.00016336,2]
[396484734,1764988231815,-500.0,0.00016336,2]
[396484735,1764988231824,-589.19052756,0.00016336,2]
[396484736,1764988231834,-500.0,0.00016336,2]
[396484737,1764988231843,-514.06152601,0.00016336,2]
[396484738,1764988231852,-229.89162838,0.00016336,2]
[396484739,1764988231862,-500.0,0.00016336,2]
[396484740,1764988231871,-438.04056958,0.00016336,2]
[396484741,1764988231880,-151.0,0.00016336,2]
[396484742,1764988231889,-151.0,0.00016336,2]
[396484743,1764988231899,-151.0,0.00016336,2]
[396484744,1764988231908,-235.3851919,0.00016336,2]
[396484745,1764988231921,-930.2906697,0.00016346,2]
[396484746,1764988231931,-606.4991174,0.00016346,2]
[396484747,1764988231940,-23494.9870753,0.00016346,2]
[396484748,1764988231949,-626.98469698,0.00016355,2]
[396484749,1764988231959,-625.15337706,0.00016355,2]
[396484750,1764988231968,-417.5779397,0.00016355,2]
[396484751,1764988231978,-500.0,0.00016355,2]
[396484752,1764988231987,-500.0,0.00016355,2]
[396484753,1764988231996,-500.0,0.00016355,2]
[396484754,1764988232005,-500.0,0.00016355,2]
[396484755,1764988232014,-500.0,0.00016355,2]
[396484756,1764988232024,-500.0,0.00016355,2]
[396484757,1764988232033,-500.0,0.00016355,2]
[396484758,1764988232042,-500.0,0.00016355,2]
[396484759,1764988232051,-500.0,0.00016355,2]
[396484760,1764988232060,-500.0,0.00016355,2]
[396484761,1764988232069,-500.0,0.00016355,2]
[396484762,1764988232078,-500.0,0.00016355,2]
[396484763,1764988232088,-500.0,0.00016355,2]
[396484764,1764988232097,-500.0,0.00016355,2]
[396484765,1764988232109,-500.0,0.00016355,2]
[396484766,1764988232118,-476.23730175,0.00016355,2]
[396484767,1764988232131,-23.76269825,0.00016355,2]
[396484768,1764988232140,-500.0,0.00016355,2]
[396484769,1764988232150,-500.0,0.00016355,2]
[396484770,1764988232160,-500.0,0.00016355,2]
[396484771,1764988232169,-500.0,0.00016355,2]
[396484772,1764988232179,-500.0,0.00016355,2]
[396484773,1764988232188,-500.0,0.00016355,2]
[396484774,1764988232197,-500.0,0.00016355,2]
[396484775,1764988232206,-500.0,0.00016355,2]
[396484776,1764988232215,-500.0,0.00016355,2]
[396484777,1764988232225,-500.0,0.00016355,2]
[396484778,1764988232234,-161.00156538,0.00016355,2]
[396484779,1764988232243,-500.0,0.00016355,2]
[396484780,1764988232252,-500.0,0.00016355,2]
[396484781,1764988232262,-500.0,0.00016355,2]
[396484782,1764988232271,-500.0,0.00016355,2]
[396484783,1764988232282,-500.0,0.00016355,2]
[396484784,1764988232291,-500.0,0.00016355,2]
[396484785,1764988232303,-500.0,0.00016355,2]
[396484786,1764988232313,-175.53656146,0.00016355,2]
[396484787,1764988232323,-500.0,0.00016355,2]
[396484788,1764988232333,-350.0,0.00016355,2]
[396484789,1764988232342,-500.0,0.00016356,2]
[396484790,1764988232352,-166.66,0.00016396,2]
[396484791,1764988232361,-6189.45543671,0.00016438,2]
[396484792,1764988232370,-6718.9207088,0.00016438,2]
[396484793,1764988232382,-305.3992912,0.00016438,2]
[396484794,1764988232392,-233.4,0.00016495,2]
[396484795,1764988232401,-500.0,0.00016521,2]
[396484796,1764988232410,-150.0,0.0001656,2]
[396484797,1764988232419,-6189.45543671,0.00016621,2]
[396484798,1764988232428,-166.66,0.00016633,2]
[396484799,1764988232438,-166.66,0.00016715,2]
[396484800,1764988232447,-3218.685,0.00016754,2]
[396484801,1764988232456,-161.813,0.00016754,2]
[396484802,1764988232466,-269.0,0.00016796,2]
[396484803,1764988232475,-150.0,0.000168,2]
[396484804,1764988232485,-6189.45543671,0.00016803,2]
[396484805,1764988232494,-489.0,0.0001686,2]
[396484806,1764988232503,-200.0,0.00016884,2]
[396484807,1764988232512,-2009.4545,0.00016886,2]
[396484808,1764988232521,-5.16075706,0.00016886,2]
[396484809,1764988232532,-4210.3142454,0.00016886,2]
[396484810,1764988232543,-293.801,0.00016886,2]
[396484811,1764988232555,-467.45030931,0.00016886,2]
[396484812,1764988232566,-704.890961,0.00016886,2]
[396484813,1764988232585,-259.11,0.00016886,2]
[396484814,1764988232596,-593.68559843,0.00016886,2]
[396484815,1764988232607,-291.96851111,0.00016886,2]
[396484829,1764988237487,-10390.97617241,0.00016886,2]
[396484830,1764988237499,-7967.72470494,0.00016886,2]
[396484831,1764988237510,-11452.28787126,0.00016886,2]
[396485052,1764988240075,-1.7e-07,0.00016886,2]
[396485055,1764988240091,-4241.67422401,0.00016886,2]
[396485057,1764988240102,-637.61440148,0.00016886,2]
[396485060,1764988240115,-1034.28220726,0.00016886,2]
[396485062,1764988240126,-1028.56858557,0.00016886,2]
[396485065,1764988240145,-9240.19879053,0.00016886,2]
[396485070,1764988240185,-1674.38258997,0.00016886,2]
[396485073,1764988240197,-324.4526,0.00016886,2]
[396485081,1764988240262,-1372.94995013,0.00016886,2]
[396485306,1764988242601,-2231.580632,0.00016886,2]
[396485308,1764988242613,-384.996,0.00016886,2]
[396485310,1764988242624,-915.44416716,0.00016886,2]
[396485314,1764988242706,-1494.48580071,0.00016886,2]
[396485319,1764988243159,-11925.68557438,0.00016886,2]
[396485320,1764988243170,-1411.08797675,0.00016886,2]
[396485321,1764988243181,-14069.92996896,0.00016886,2]
[396485322,1764988243190,-150.0,0.0001692,2]
[396485323,1764988243200,-723.62263632,0.00016957,2]
[396485324,1764988243209,-502.14996135,0.00016965,2]
[396485325,1764988243218,-633.50767423,0.00016966,2]
[396485326,1764988243227,-281.50155398,0.00016966,2]
[396485327,1764988243236,-1000.0,0.00016985,2]
[396485328,1764988243247,-856.0,0.00016985,2]
[396485329,1764988243256,-6189.45543671,0.00016986,2]
[396485330,1764988243265,-10560.79578229,0.00016986,2]
[396485332,1764988245724,-440.807,0.00016986,2]
[396485333,1764988245834,-511.79597921,0.00016986,2]
[396485334,1764988246599,232.3853,0.00015925,2]
[396485335,1764988531074,161.58,8.096e-05,2]
[396485336,1764988531201,161.58,8.996e-05,2]
[396485337,1764988531270,161.58,9.895e-05,2]
[396485338,1764988531472,161.58,0.00010795,2]
[396485339,1764988531661,161.58,0.00011694,2]
[396485340,1764988531873,161.58,0.00012594,2]
[396485341,1764988532065,161.58,0.00013493,2]
[396485342,1764988532284,161.58,0.00014393,2]
[396485343,1764988532476,161.58,0.00015292,2]
[396485346,1764988607251,75000.0,0.00025,120]
[396485349,1764988626640,416.09,0.00025,120]
[396485369,1764988945363,181.93,0.00015856,2]
[396485380,1764988988415,1000.0,0.00015735,2]
[396485389,1764989076914,171.74,0.00012576,2]
[396485394,1764989112086,3634.57,0.000157,2]
[396485400,1764989341909,1000.0,0.00015999,3]
[396485401,1764989342032,1000.0,0.00015996,3]
[396485403,1764989431602,-462.11065713,0.00016128,2]
[396485404,1764989431614,-302.25934287,0.00016128,2]
[396485405,1764989431623,-193.0,0.00016128,2]
[396485406,1764989431632,-177.08852704,0.00016128,2]
[396485407,1764989431641,-220.36213009,0.00016128,2]
[396485408,1764989431652,-79.63786991,0.00016128,2]
[396485409,1764989431661,-250.0,0.00016128,2]
[396485410,1764989431670,-285.0,0.00016128,2]
[396485411,1764989431679,-193.0,0.00016131,2]
[396485412,1764989431688,-193.55237854,0.00016131,2]
[396485413,1764989431697,-300.0,0.00016144,2]
[396485414,1764989431707,-578.20924308,0.00016144,2]
[396485415,1764989431716,-307.92,0.00016147,2]
[396485416,1764989431725,-161.58,0.00016192,2]
[396485417,1764989431734,-1200.0,0.00016199,2]
[396485418,1764989431743,-1000.0,0.00016199,3]
[396485419,1764989431752,-300.0,0.00016199,2]
[396485420,1764989431761,-300.0,0.00016199,2]
[396485421,1764989431770,-1200.0,0.00016199,2]
[396485422,1764989431779,-150.0,0.000162,2]
[396485423,1764989431788,-150.0,0.000162,2]
[396485424,1764989431797,-150.0,0.000162,2]
[396485425,1764989431806,-182.72186758,0.000162,2]
[396485426,1764989431815,-150.0,0.000162,2]
[396485427,1764989431824,-227.97167467,0.000162,2]
[396485428,1764989431833,-150.0,0.000162,2]
[396485429,1764989431842,-150.0,0.000162,2]
[396485430,1764989431851,-151.94084902,0.000162,2]
[396485431,1764989431860,-150.0,0.000162,2]
[396485433,1764989431869,-150.0,0.000162,2]
[396485434,1764989431878,-150.0,0.000162,2]
[396485435,1764989431887,-268.27848787,0.000162,2]
[396485436,1764989431929,-1257.09151213,0.000162,2]
[396485437,1764989431938,-1500.0,0.00016204,2]
[396485438,1764989431947,-741.5968718,0.00016229,2]
[396485440,1764989436409,1557.55,0.00015833,2]
[396485441,1764989436433,42.45,0.00015833,2]
[396485447,1764989437742,-258.4031282,0.00016229,2]
[396485448,1764989437752,-353.58516607,0.00016229,2]
[396485449,1764989437761,-191.66697356,0.00016229,2]
[396485450,1764989437770,-151.0,0.00016229,2]
[396485451,1764989437779,-693.3919763,0.00016229,2]
[396485452,1764989437789,-300.0,0.00016229,2]
[396485453,1764989437798,-277.35679052,0.00016229,2]
[396485454,1764989437807,-1852.42,0.00016238,2]
[396485455,1764989437816,-237.02151661,0.00016355,2]
[396485456,1764989437825,-177.62952427,0.00016359,2]
[396485457,1764989437834,-1525.37,0.00016474,2]
[396485458,1764989437843,-150.0,0.0001665,2]
[396485459,1764989437852,-200.0,0.0001668,2]
[396485460,1764989437862,-6676.0421,0.00016681,2]
[396485461,1764989437871,-10110.7584,0.00016681,2]
[396485462,1764989437880,-4780.4836886,0.000167,2]
[396485463,1764989437889,-633.16980678,0.000167,2]
[396485464,1764989437899,-161.67248012,0.000167,2]
[396485465,1764989437908,-1439.48709835,0.000167,2]
[396485466,1764989437917,-11356.23646107,0.000167,2]
[396485467,1764989437927,-421.80377519,0.00016731,2]
[396485468,1764989437935,-1439.48709833,0.00016741,2]
[396485469,1764989437944,-1069.0,0.00016748,2]
[396485471,1764989437954,-1525.37,0.00016748,2]
[396485472,1764989437963,-1383.0,0.00016765,2]
[396485473,1764989437973,-500.0,0.0001677,2]
[396485474,1764989437982,-500.0,0.0001677,2]
[396485475,1764989437991,-401.10015654,0.0001677,2]
[396485476,1764989438001,-151.0,0.00016771,2]
[396485477,1764989438010,-243.223951,0.00016771,2]
[396485478,1764989438019,-243.223951,0.00016771,2]
[396485479,1764989438032,-243.223951,0.00016771,2]
[396485480,1764989438042,-243.223951,0.00016771,2]
[396485481,1764989438051,-500.0,0.00016771,2]
[396485482,1764989438060,-2000.0,0.00016771,2]
[396485484,1764989438071,-500.0,0.00016771,2]
[396485487,1764989438081,-500.0,0.00016771,2]
[396485489,1764989438090,-2000.0,0.00016771,2]
[396485490,1764989438099,-500.0,0.00016771,2]
[396485492,1764989438110,-500.0,0.00016771,2]
[396485493,1764989438119,-250.0,0.00016771,2]
[396485494,1764989438129,-500.0,0.00016771,2]
[396485495,1764989438138,-500.0,0.00016771,2]
[396485496,1764989438147,-2000.0,0.00016771,2]
[396485497,1764989438156,-500.0,0.00016771,2]
[396485498,1764989438166,-500.0,0.00016771,2]
[396485499,1764989438175,-500.0,0.00016771,2]
[396485500,1764989438184,-500.0,0.00016771,2]
[396485501,1764989438193,-500.0,0.00016771,2]
[396485502,1764989438202,-2000.0,0.00016771,2]
[396485503,1764989438211,-500.0,0.00016771,2]
[396485504,1764989438221,-500.0,0.00016771,2]
[396485505,1764989438231,-250.0,0.00016771,2]
[396485506,1764989438240,-500.0,0.00016771,2]
[396485507,1764989438250,-500.0,0.00016771,2]
[396485508,1764989438260,-2000.0,0.00016771,2]
[396485509,1764989438269,-500.0,0.00016771,2]
[396485510,1764989438279,-500.0,0.00016771,2]
[396485511,1764989438288,-500.0,0.00016771,2]
[396485513,1764989438297,-250.0,0.00016771,2]
[396485515,1764989438306,-500.0,0.00016771,2]
[396485517,1764989438315,-500.0,0.00016771,2]
[396485519,1764989438326,-2000.0,0.00016771,2]
[396485521,1764989438335,-500.0,0.00016771,2]
[396485523,1764989438345,-500.0,0.00016771,2]
[396485525,1764989438354,-500.0,0.00016771,2]
[396485528,1764989438363,-250.0,0.00016771,2]
[396485530,1764989438373,-500.0,0.00016771,2]
[396485531,1764989438382,-500.0,0.00016771,2]
[396485533,1764989438392,-2115.20441961,0.00016771,2]
[396485535,1764989438401,-500.0,0.00016771,2]
[396485537,1764989438410,-500.0,0.00016771,2]
[396485539,1764989438420,-155.49261303,0.00016771,2]
[396485542,1764989438429,-500.0,0.00016771,2]
[396485543,1764989438438,-500.0,0.00016771,2]
[396485545,1764989438447,-500.0,0.00016771,2]
[396485546,1764989438457,-500.0,0.00016771,2]
[396485547,1764989438466,-500.0,0.00016771,2]
[396485548,1764989438476,-500.0,0.00016771,2]
[396485549,1764989438485,-500.0,0.00016771,2]
[396485550,1764989438494,-500.0,0.00016771,2]
[396485551,1764989438504,-500.0,0.00016771,2]
[396485552,1764989438513,-500.0,0.00016771,2]
[396485553,1764989438523,-500.0,0.00016771,2]
[396485554,1764989438532,-500.0,0.00016771,2]
[396485555,1764989438542,-500.0,0.00016771,2]
[396485556,1764989438551,-500.0,0.00016771,2]
[396485557,1764989438561,-500.0,0.00016771,2]
[396485558,1764989438570,-500.0,0.00016771,2]
[396485559,1764989438580,-500.0,0.00016771,2]
[396485560,1764989438589,-500.0,0.00016771,2]
[396485561,1764989438599,-500.0,0.00016771,2]
[396485562,1764989438608,-500.0,0.00016771,2]
[396485563,1764989438618,-500.0,0.00016771,2]
[396485564,1764989438627,-500.0,0.00016771,2]
[396485565,1764989438636,-510.27669713,0.00016771,2]
[396485566,1764989438646,-500.0,0.00016771,2]
[396485567,1764989438657,-500.0,0.00016771,2]
[396485568,1764989438667,-500.0,0.00016771,2]
[396485569,1764989438676,-574.12855637,0.00016771,2]
[396485570,1764989438686,-1000.0,0.00016771,2]
[396485571,1764989438695,-1000.0,0.00016771,2]
[396485572,1764989438705,-1000.0,0.00016771,2]
[396485573,1764989438715,-1000.0,0.00016771,2]
[396485574,1764989438724,-1000.0,0.00016771,2]
[396485575,1764989438734,-1000.0,0.00016771,2]
[396485576,1764989438743,-1000.0,0.00016771,2]
[396485577,1764989438752,-1000.0,0.00016771,2]
[396485578,1764989438762,-1000.0,0.00016771,2]
[396485579,1764989438771,-490.4334764,0.00016771,2]
[396485580,1764989438781,-1000.0,0.00016771,2]
[396485581,1764989438790,-1000.0,0.00016771,2]
[396485582,1764989438800,-151.0,0.00016771,2]
[396485583,1764989438809,-1000.0,0.00016771,2]
[396485584,1764989438818,-165.49099123,0.00016771,2]
[396485585,1764989438828,-151.26991407,0.00016771,2]
[396485586,1764989438837,-1000.0,0.00016771,2]
[396485587,1764989438847,-1000.0,0.00016771,2]
[396485588,1764989438856,-1000.0,0.00016771,2]
[396485589,1764989438865,-1000.0,0.00016771,2]
[396485590,1764989438875,-1000.0,0.00016771,2]
[396485591,1764989438885,-1000.0,0.00016771,2]
[396485592,1764989438895,-1011.17320327,0.00016771,2]
[396485593,1764989438904,-200.0,0.00016771,2]
[396485594,1764989438915,-151.0,0.00016771,2]
[396485595,1764989438924,-151.0,0.00016771,2]
[396485596,1764989438934,-151.0,0.00016771,2]
[396485597,1764989438943,-151.0,0.00016771,2]
[396485598,1764989438953,-630.07545876,0.00016771,2]
[396485599,1764989438963,-151.84094163,0.00016771,2]
[396485600,1764989438972,-500.0,0.00016771,2]
[396485601,1764989438982,-500.0,0.00016771,2]
[396485602,1764989438992,-500.0,0.00016771,2]
[396485603,1764989439002,-500.0,0.00016771,2]
[396485604,1764989439011,-500.0,0.00016771,2]
[396485605,1764989439021,-500.0,0.00016771,2]
[396485606,1764989439033,-500.0,0.00016771,2]
[396485607,1764989439043,-500.0,0.00016771,2]
[396485608,1764989439053,-187.18447048,0.00016771,2]
[396485609,1764989439063,-500.0,0.00016771,2]
[396485610,1764989439074,-500.0,0.00016771,2]
[396485611,1764989439084,-500.0,0.00016771,2]
[396485612,1764989439093,-4000.0,0.00016771,2]
[396485613,1764989439103,-4000.0,0.00016771,2]
[396485614,1764989439114,-4000.0,0.00016771,2]
[396485615,1764989439124,-336.85347089,0.00016771,2]